fUST/lending_fUST_20250817
["ID","MTS","AMOUNT","RATE_DAILY","PERIOD"]
[379858361,1755425446489,-160.67804103,0.00020466,2]
[379858362,1755425446499,-168.47236733,0.00020466,2]
[379858363,1755425446510,-500.0,0.00020473,2]
[379858364,1755425446520,-500.0,0.00020473,2]
[379858365,1755425446529,-500.0,0.00020473,2]
[379858366,1755425446539,-500.7173259,0.00020473,2]
[379858367,1755425446553,-500.0,0.00020473,2]
[379858368,1755425446563,-500.0,0.00020473,2]
[379858369,1755425446572,-500.0,0.00020473,2]
[379858370,1755425446582,-500.0,0.00020473,2]
[379858371,1755425446591,-500.71946824,0.00020473,2]
[379858372,1755425446601,-502.13602325,0.00020473,2]
[379858373,1755425446611,-500.0,0.00020473,2]
[379858375,1755425446621,-500.0,0.00020473,2]
[379858377,1755425446631,-500.0,0.00020473,2]
[379858379,1755425446641,-500.0,0.00020473,2]
[379858381,1755425446650,-500.0,0.00020473,2]
[379858382,1755425446660,-500.0,0.00020473,2]
[379858384,1755425446671,-500.0,0.00020473,2]
[379858386,1755425446681,-500.0,0.00020473,2]
[379858388,1755425446691,-500.0,0.00020473,2]
[379858391,1755425446702,-500.0,0.00020473,2]
[379858393,1755425446711,-502.29518042,0.00020473,2]
[379858395,1755425446721,-500.0,0.00020473,2]
[379858396,1755425446730,-500.0,0.00020473,2]
[379858398,1755425446739,-500.0,0.00020473,2]
[379858400,1755425446750,-500.0,0.00020473,2]
[379858403,1755425446760,-500.0,0.00020473,2]
[379858404,1755425446769,-428.16216798,0.00020473,2]
[379858406,1755425446779,-500.64506414,0.00020473,2]
[379858408,1755425446788,-501.25711225,0.00020473,2]
[379858410,1755425446800,-394.04902133,0.00020473,2]
[379858412,1755425446810,-500.0,0.00020473,2]
[379858414,1755425446819,-500.0,0.00020473,2]
[379858417,1755425446830,-500.0,0.00020473,2]
[379858419,1755425446841,-500.0,0.00020473,2]
[379858432,1755425446963,-501.23763847,0.00020473,2]
[379858434,1755425446973,-500.0,0.00020473,2]
[379858436,1755425446983,-500.0,0.00020473,2]
[379858438,1755425446993,-155.70427704,0.00020473,2]
[379858440,1755425447002,-500.0,0.00020473,2]
[379858442,1755425447012,-500.0,0.00020473,2]
[379858444,1755425447023,-500.0,0.00020473,2]
[379858446,1755425447033,-500.0,0.00020473,2]
[379858448,1755425447043,-500.0,0.00020473,2]
[379858450,1755425447052,-500.0,0.00020473,2]
[379858452,1755425447062,-500.0,0.00020473,2]
[379858454,1755425447074,-500.0,0.00020473,2]
[379858456,1755425447084,-500.0,0.00020473,2]
[379858458,1755425447094,-158.2102775,0.00020473,2]
[379858460,1755425447103,-500.0,0.00020473,2]
[379858462,1755425447112,-209.45680146,0.00020473,2]
[379858464,1755425447122,-500.0,0.00020473,2]
[379858466,1755425447132,-500.0,0.00020473,2]
[379858468,1755425447141,-500.0,0.00020473,2]
[379858470,1755425447150,-502.45168872,0.00020473,2]
[379858472,1755425447160,-452.03338951,0.00020473,2]
[379858474,1755425447170,-500.0,0.00020473,2]
[379858476,1755425447179,-500.42212768,0.00020473,2]
[379858477,1755425447188,-500.0,0.00020473,2]
[379858479,1755425447197,-503.84495394,0.00020473,2]
[379858481,1755425447207,-500.48515569,0.00020473,2]
[379858483,1755425447216,-500.0,0.00020473,2]
[379858485,1755425447225,-500.0,0.00020473,2]
[379858487,1755425447235,-151.0,0.00020473,2]
[379858489,1755425447245,-201.15189442,0.00020499,2]
[379858491,1755425447254,-161.0584732,0.00020499,2]
[379858493,1755425447264,-986.80008174,0.00020499,2]
[379858495,1755425447273,-158.93339088,0.00020499,2]
[379858497,1755425447283,-500.0,0.00020499,2]
[379858499,1755425447294,-500.0,0.00020499,2]
[379858501,1755425447303,-500.0,0.00020499,2]
[379858503,1755425447313,-428.31,0.00020499,2]
[379858505,1755425447323,-34150.89322294,0.000205,2]
[379858507,1755425447333,-151.0,0.000205,2]
[379858509,1755425447342,-151.0,0.000205,2]
[379858510,1755425447352,-151.0,0.000205,2]
[379858512,1755425447364,-151.0,0.000205,2]
[379858514,1755425447374,-151.0,0.000205,2]
[379858516,1755425447384,-151.0,0.000205,2]
[379858518,1755425447394,-151.0,0.000205,2]
[379858520,1755425447404,-206.747194,0.000205,2]
[379858522,1755425447414,-151.0,0.000205,2]
[379858524,1755425447424,-151.0,0.000205,2]
[379858526,1755425447434,-151.0,0.000205,2]
[379858528,1755425447444,-151.0,0.000205,2]
[379858530,1755425447461,-151.0,0.000205,2]
[379858532,1755425447471,-151.0,0.000205,2]
[379858534,1755425447480,-223.019689,0.000205,2]
[379858536,1755425447490,-164.401517,0.000205,7]
[379858538,1755425447499,-151.0,0.000205,2]
[379858540,1755425447509,-151.0,0.000205,2]
[379858542,1755425447518,-151.0,0.000205,2]
[379858543,1755425447527,-151.0,0.000205,2]
[379858545,1755425447536,-151.0,0.000205,2]
[379858547,1755425447545,-151.0,0.000205,2]
[379858548,1755425447554,-151.0,0.000205,2]
[379858550,1755425447564,-142137.81,0.000205,2]
[379858552,1755425447573,-151.0,0.000205,2]
[379858554,1755425447582,-151.0,0.000205,2]
[379858556,1755425447591,-151.0,0.000205,2]
[379858558,1755425447600,-151.0,0.000205,2]
[379858560,1755425447609,-500.0,0.000205,2]
[379858562,1755425447618,-500.0,0.000205,2]
[379858564,1755425447627,-593.24961039,0.000205,2]
[379858566,1755425447637,-151.0,0.000205,2]
[379858568,1755425447646,-151.564141,0.000205,2]
[379858569,1755425447656,-151.0,0.000205,2]
[379858571,1755425447665,-151.0,0.000205,2]
[379858573,1755425447675,-271.098323,0.000205,2]
[379858575,1755425447686,-151.0,0.000205,2]
[379858577,1755425447702,-151.0,0.000205,2]
[379858579,1755425447711,-151.0,0.000205,2]
[379858581,1755425447720,-151.0,0.000205,2]
[379858583,1755425447729,-151.0,0.000205,2]
[379858585,1755425447738,-151.0,0.000205,2]
[379858587,1755425447747,-500.0,0.000205,2]
[379858589,1755425447757,-500.0,0.000205,2]
[379858591,1755425447767,-522.748646,0.000205,2]
[379858593,1755425447775,-151.0,0.000205,2]
[379858595,1755425447785,-151.0,0.000205,2]
[379858596,1755425447795,-151.0,0.000205,2]
[379858598,1755425447804,-151.0,0.000205,2]
[379858600,1755425447813,-151.0,0.000205,2]
[379858602,1755425447822,-202.338928,0.000205,2]
[379858604,1755425447831,-151.0,0.000205,2]
[379858606,1755425447840,-151.0,0.000205,2]
[379858608,1755425447850,-151.0,0.000205,2]
[379858610,1755425447861,-331.867561,0.000205,2]
[379858612,1755425447870,-331.867561,0.000205,2]
[379858614,1755425447880,-331.867561,0.000205,2]
[379858616,1755425447889,-327.492859,0.000205,2]
[379858618,1755425447898,-151.318924,0.000205,2]
[379858620,1755425447907,-165.944507,0.000205,2]
[379858622,1755425447916,-165.944507,0.000205,2]
[379858624,1755425447926,-165.944507,0.000205,2]
[379858626,1755425447935,-165.944507,0.000205,2]
[379858628,1755425447944,-165.944507,0.000205,2]
[379858630,1755425447953,-165.944507,0.000205,2]
[379858631,1755425447962,-1425.506809,0.000205,2]
[379858633,1755425447972,-1425.506809,0.000205,2]
[379858635,1755425447981,-1425.506809,0.000205,2]
[379858637,1755425447991,-1425.506809,0.000205,2]
[379858639,1755425448001,-1425.506809,0.000205,2]
[379858641,1755425448011,-1425.506809,0.000205,2]
[379858643,1755425448021,-151.0,0.000205,2]
[379858645,1755425448031,-151.0,0.000205,2]
[379858647,1755425448042,-151.0,0.000205,2]
[379858649,1755425448053,-151.0,0.000205,2]
[379858651,1755425448063,-151.0,0.000205,2]
[379858653,1755425448078,-279.103583,0.000205,2]
[379858655,1755425448088,-151.0,0.000205,2]
[379858657,1755425448098,-151.0,0.000205,2]
[379858659,1755425448111,-151.0,0.000205,2]
[379858661,1755425448123,-151.0,0.000205,2]
[379858663,1755425448133,-151.0,0.000205,2]
[379858665,1755425448143,-161.998333,0.000205,2]
[379858667,1755425448157,-151.0,0.000205,2]
[379858669,1755425448175,-151.0,0.000205,2]
[379858671,1755425448186,-151.0,0.000205,2]
[379858673,1755425448195,-151.0,0.000205,2]
[379858675,1755425448205,-151.0,0.000205,2]
[379858677,1755425448215,-287.838555,0.000205,2]
[379858679,1755425448225,-62474.93,0.000205,2]
[379858681,1755425448235,-221967.82,0.000205,2]
[379858683,1755425448246,-185.267784,0.000205,2]
[379858685,1755425448255,-185.267784,0.000205,2]
[379858687,1755425448266,-185.267784,0.000205,2]
[379858689,1755425448275,-185.267784,0.000205,2]
[379858691,1755425448285,-185.267784,0.000205,2]
[379858693,1755425448295,-185.267784,0.000205,2]
[379858695,1755425448305,-151.0,0.000205,2]
[379858697,1755425448314,-151.0,0.000205,2]
[379858699,1755425448324,-151.0,0.000205,2]
[379858701,1755425448333,-151.0,0.000205,2]
[379858702,1755425448342,-275.078659,0.000205,2]
[379858704,1755425448351,-151.0,0.000205,2]
[379858706,1755425448361,-151.0,0.000205,2]
[379858708,1755425448370,-151.0,0.000205,2]
[379858710,1755425448382,-151.0,0.000205,2]
[379858712,1755425448398,-151.0,0.000205,2]
[379858714,1755425448416,-151.0,0.000205,2]
[379858716,1755425448429,-479.815586,0.000205,2]
[379858718,1755425448440,-479.815586,0.000205,2]
[379858720,1755425448449,-479.815586,0.000205,2]
[379858721,1755425448459,-479.815586,0.000205,2]
[379858724,1755425448479,-479.815586,0.000205,2]
[379858726,1755425448500,-479.815586,0.000205,2]
[379858727,1755425448512,-694.164983,0.000205,2]
[379858729,1755425448522,-694.164983,0.000205,2]
[379858731,1755425448532,-694.164983,0.000205,2]
[379858733,1755425448541,-694.164983,0.000205,2]
[379858735,1755425448552,-694.164983,0.000205,2]
[379858737,1755425448562,-694.164983,0.000205,2]
[379858739,1755425448572,-151.0,0.000205,2]
[379858741,1755425448583,-296.08017,0.000205,2]
[379858743,1755425448593,-151.0,0.000205,2]
[379858745,1755425448603,-573.466699,0.000205,2]
[379858747,1755425448613,-573.466699,0.000205,2]
[379858749,1755425448623,-151.0,0.000205,2]
[379858751,1755425448633,-231.446821,0.000205,2]
[379858753,1755425448644,-231.446821,0.000205,2]
[379858755,1755425448654,-151.0,0.000205,3]
[379858757,1755425448663,-151.0,0.000205,2]
[379858759,1755425448672,-151.0,0.000205,2]
[379858761,1755425448682,-166.353644,0.000205,2]
[379858763,1755425448692,-151.0,0.000205,2]
[379858765,1755425448701,-166.353644,0.000205,2]
[379858767,1755425448711,-151.0,0.000205,2]
[379858768,1755425448721,-151.0,0.000205,2]
[379858770,1755425448731,-151.0,0.000205,2]
[379858772,1755425448741,-151.0,0.000205,2]
[379858774,1755425448752,-170.624387,0.000205,2]
[379858776,1755425448761,-170.624387,0.000205,2]
[379858778,1755425448772,-151.0,0.000205,2]
[379858780,1755425448782,-151.0,0.000205,2]
[379858782,1755425448791,-151.0,0.000205,2]
[379858784,1755425448802,-1651.275189,0.000205,2]
[379858786,1755425448811,-1651.275189,0.000205,2]
[379858788,1755425448820,-151.0,0.000205,2]
[379858790,1755425448831,-151.0,0.000205,2]
[379858792,1755425448841,-151.0,0.000205,3]
[379858794,1755425448850,-543.121224,0.000205,2]
[379858796,1755425448860,-543.121224,0.000205,2]
[379858798,1755425448870,-212.371471,0.000205,2]
[379858800,1755425448879,-212.371471,0.000205,2]
[379858802,1755425448890,-212.371471,0.000205,2]
[379858804,1755425448900,-212.371471,0.000205,2]
[379858805,1755425448910,-203.97,0.000205,2]
[379858807,1755425448919,-699.433274,0.000205,2]
[379858809,1755425448929,-699.433274,0.000205,2]
[379858811,1755425448939,-151.0,0.000205,2]
[379858813,1755425448949,-151.0,0.000205,2]
[379858815,1755425448958,-151.0,0.000205,2]
[379858817,1755425448968,-151.0,0.000205,2]
[379858819,1755425448979,-245.467757,0.000205,2]
[379858821,1755425448989,-245.467757,0.000205,2]
[379858823,1755425448999,-245.467757,0.000205,2]
[379858825,1755425449009,-245.467757,0.000205,2]
[379858827,1755425449019,-151.0,0.000205,2]
[379858829,1755425449029,-151.0,0.000205,2]
[379858831,1755425449039,-151.0,0.000205,2]
[379858832,1755425449050,-151.0,0.000205,2]
[379858834,1755425449060,-191.456418,0.000205,2]
[379858836,1755425449070,-191.456418,0.000205,2]
[379858838,1755425449084,-191.456418,0.000205,2]
[379858840,1755425449094,-191.456418,0.000205,2]
[379858842,1755425449105,-654.213815,0.000205,2]
[379858844,1755425449115,-654.213815,0.000205,2]
[379858846,1755425449126,-654.213815,0.000205,2]
[379858848,1755425449136,-654.213815,0.000205,2]
[379858850,1755425449146,-151.0,0.000205,2]
[379858852,1755425449155,-151.0,0.000205,2]
[379858853,1755425449165,-151.0,0.000205,2]
[379858854,1755425449175,-152.753718,0.000205,2]
[379858855,1755425449185,-998.0,0.00020503,2]
[379858856,1755425449195,-168.0,0.00020517,2]
[379858857,1755425449204,-160.0,0.0002052,3]
[379858858,1755425449213,-478.0,0.00020522,2]
[379858859,1755425449222,-168.0,0.0002054,2]
[379858860,1755425449232,-500.0,0.00020547,2]
[379858861,1755425449242,-185.39311456,0.00020548,2]
[379858862,1755425449256,-372.7,0.0002055,2]
[379858863,1755425449265,-480.0,0.00020563,2]
[379858864,1755425449275,-168.0,0.00020572,2]
[379858865,1755425449284,-13603.98982371,0.00020581,2]
[379858866,1755425449294,-178.0,0.00020596,2]
[379858868,1755425449304,-151.0,0.000206,3]
[379858870,1755425449314,-980.628,0.00020608,2]
[379858872,1755425449323,-2153.0,0.00020608,2]
[379858874,1755425449333,-637.0,0.00020608,2]
[379858876,1755425449343,-408.0,0.00020608,2]
[379858878,1755425449353,-422.367,0.00020608,2]
[379858880,1755425449362,-185.39311456,0.0002063,2]
[379858882,1755425449371,-207.0,0.0002064,2]
[379858884,1755425449381,-845.63,0.00020661,2]
[379858886,1755425449390,-480.0,0.00020661,2]
[379858888,1755425449400,-480.0,0.00020661,2]
[379858890,1755425449411,-480.0,0.00020661,2]
[379858892,1755425449421,-1448.02,0.00020661,2]
[379858894,1755425449431,-2552.16,0.00020661,2]
[379858895,1755425449440,-480.0,0.00020661,2]
[379858897,1755425449449,-3827.42,0.00020661,2]
[379858899,1755425449459,-1483.94,0.00020661,2]
[379858901,1755425449469,-480.0,0.00020661,2]
[379858904,1755425449479,-480.0,0.00020661,2]
[379858905,1755425449489,-480.0,0.00020661,2]
[379858907,1755425449498,-480.0,0.00020661,2]
[379858909,1755425449508,-1770.71,0.00020661,2]
[379858911,1755425449517,-189.56,0.00020661,2]
[379858913,1755425449527,-480.0,0.00020661,2]
[379858915,1755425449537,-480.0,0.00020662,2]
[379858917,1755425449547,-469.81961663,0.00020662,2]
[379858919,1755425449556,-480.0,0.00020662,2]
[379858921,1755425449565,-480.0,0.00020662,2]
[379858923,1755425449574,-813.28,0.00020662,2]
[379858925,1755425449584,-223.8,0.00020662,2]
[379858927,1755425449593,-485.55692774,0.00020662,2]
[379858929,1755425449603,-480.76,0.00020662,2]
[379858931,1755425449612,-480.0,0.00020662,2]
[379858933,1755425449622,-525.27,0.00020662,2]
[379858935,1755425449631,-480.0,0.00020662,2]
[379858937,1755425449641,-1763.29,0.00020662,2]
[379858939,1755425449650,-480.0,0.00020662,2]
[379858941,1755425449659,-480.0,0.00020662,2]
[379858943,1755425449669,-480.0,0.00020662,2]
[379858945,1755425449678,-2382.81,0.00020662,2]
[379858947,1755425449688,-480.0,0.00020662,2]
[379858949,1755425449697,-480.0,0.00020662,2]
[379858951,1755425449706,-480.0,0.00020662,2]
[379858953,1755425449715,-480.0,0.00020662,2]
[379858955,1755425449725,-480.0,0.00020662,2]
[379858957,1755425449734,-460.0,0.00020662,2]
[379858959,1755425449743,-541.55,0.00020662,2]
[379858961,1755425449752,-480.0,0.00020662,2]
[379858963,1755425449762,-607.62,0.00020662,2]
[379858965,1755425449773,-480.0,0.00020662,2]
[379858967,1755425449782,-480.0,0.00020662,2]
[379858969,1755425449791,-480.0,0.00020662,2]
[379858971,1755425449801,-480.0,0.00020662,2]
[379858973,1755425449811,-527.4,0.00020662,2]
[379858975,1755425449820,-480.0,0.00020662,2]
[379858977,1755425449831,-480.0,0.00020662,2]
[379858979,1755425449840,-480.0,0.00020662,2]
[379858981,1755425449850,-480.0,0.00020662,2]
[379858983,1755425449859,-582.68,0.00020662,2]
[379858984,1755425449870,-484.4448172,0.00020662,2]
[379858987,1755425449881,-480.0,0.00020662,2]
[379858988,1755425449890,-588.06876438,0.00020662,2]
[379858990,1755425449900,-480.0,0.00020662,2]
[379858992,1755425449910,-1246.69,0.00020662,2]
[379859007,1755425450034,-480.0,0.00020662,2]
[379859009,1755425450044,-480.0,0.00020662,2]
[379859010,1755425450054,-702.67,0.00020662,2]
[379859013,1755425450064,-595.36,0.00020663,2]
[379859015,1755425450079,-615.16,0.00020663,2]
[379859016,1755425450091,-480.0,0.00020663,2]
[379859018,1755425450101,-480.0,0.00020663,2]
[379859020,1755425450111,-480.0,0.00020663,2]
[379859022,1755425450123,-480.0,0.00020663,2]
[379859024,1755425450133,-781.84,0.00020663,2]
[379859026,1755425450143,-480.0,0.00020663,2]
[379859028,1755425450157,-480.0,0.00020663,2]
[379859030,1755425450168,-338.42,0.00020663,2]
[379859032,1755425450179,-569.55,0.00020663,2]
[379859034,1755425450189,-480.0,0.00020663,2]
[379859036,1755425450199,-480.0,0.00020663,2]
[379859038,1755425450209,-480.0,0.00020663,2]
[379859040,1755425450218,-480.0,0.00020663,2]
[379859042,1755425450229,-534.51918852,0.00020663,2]
[379859044,1755425450239,-480.0,0.00020663,2]
[379859046,1755425450250,-6651.06,0.00020663,2]
[379859047,1755425450260,-652.36,0.00020663,2]
[379859049,1755425450271,-480.0,0.00020663,2]
[379859051,1755425450280,-480.0,0.00020663,2]
[379859053,1755425450290,-480.0,0.00020663,2]
[379859055,1755425450300,-1463.81,0.00020663,2]
[379859057,1755425450310,-480.0,0.00020663,2]
[379859059,1755425450320,-480.0,0.00020663,2]
[379859061,1755425450330,-698.51,0.00020663,2]
[379859063,1755425450339,-168.0,0.00020664,2]
[379859065,1755425450350,-239.74710788,0.00020664,2]
[379859067,1755425450361,-480.0,0.00020664,2]
[379859069,1755425450371,-480.0,0.00020664,2]
[379859071,1755425450381,-480.0,0.00020664,2]
[379859073,1755425450391,-216.42487785,0.00020664,2]
[379859075,1755425450402,-3981.56,0.00020664,2]
[379859077,1755425450412,-6321.03,0.00020664,2]
[379859079,1755425450424,-480.0,0.00020664,2]
[379859081,1755425450434,-480.0,0.00020664,2]
[379859083,1755425450443,-843.13,0.00020664,2]
[379859085,1755425450454,-613.97,0.00020665,2]
[379859087,1755425450465,-490.63,0.00020665,2]
[379859089,1755425450475,-480.0,0.00020665,2]
[379859091,1755425450485,-480.0,0.00020665,2]
[379859093,1755425450496,-2211.58,0.00020665,2]
[379859095,1755425450507,-1490.32,0.00020665,2]
[379859097,1755425450517,-480.0,0.00020665,2]
[379859099,1755425450527,-480.0,0.00020665,2]
[379859101,1755425450537,-478.0,0.00020667,2]
[379859103,1755425450547,-151.0,0.0002067,2]
[379859105,1755425450558,-151.0,0.0002067,2]
[379859107,1755425450568,-407.3549747,0.0002067,2]
[379859109,1755425450578,-151.65313807,0.0002067,2]
[379859111,1755425450588,-153.32096028,0.0002067,2]
[379859113,1755425450598,-500.0,0.0002067,2]
[379859115,1755425450608,-151.0,0.0002067,2]
[379859117,1755425450618,-151.0,0.0002067,2]
[379859119,1755425450628,-151.0,0.0002067,2]
[379859121,1755425450639,-151.0,0.0002067,2]
[379859123,1755425450648,-151.0,0.0002067,2]
[379859125,1755425450658,-1547.0,0.0002067,2]
[379859127,1755425450667,-472.8275706,0.0002067,2]
[379859129,1755425450676,-198.0,0.0002067,2]
[379859131,1755425450685,-151.0,0.0002067,2]
[379859133,1755425450695,-600.0,0.0002069,2]
[379859135,1755425450705,-478.0,0.00020692,2]
[379859136,1755425450714,-372.7,0.00020695,2]
[379859138,1755425450723,-151.0,0.000207,2]
[379859140,1755425450733,-151.0,0.000207,2]
[379859142,1755425450743,-151.0,0.000207,2]
[379859144,1755425450753,-151.0,0.000207,2]
[379859146,1755425450762,-3000.0,0.000207,2]
[379859148,1755425450772,-151.0,0.000207,3]
[379859150,1755425450781,-151.0,0.0002071,2]
[379859152,1755425450792,-151.0,0.0002071,2]
[379859154,1755425450803,-3000.0,0.0002071,2]
[379859156,1755425450813,-151.0,0.0002071,2]
[379859158,1755425450823,-151.0,0.0002071,2]
[379859160,1755425450834,-479.815586,0.0002071,2]
[379859162,1755425450844,-479.815586,0.0002071,2]
[379859164,1755425450854,-151.0,0.00020719,2]
[379859166,1755425450864,-151.0,0.00020719,2]
[379859168,1755425450874,-185.267784,0.00020719,2]
[379859170,1755425450884,-185.267784,0.00020719,2]
[379859172,1755425450894,-694.164983,0.00020719,2]
[379859174,1755425450904,-694.164983,0.00020719,2]
[379859176,1755425450914,-3000.0,0.0002072,2]
[379859178,1755425450924,-151.0,0.0002073,2]
[379859179,1755425450933,-151.0,0.0002073,2]
[379859181,1755425450943,-3000.0,0.0002073,2]
[379859183,1755425450953,-185.39311456,0.0002074,2]
[379859185,1755425450962,-160.67804103,0.0002074,2]
[379859187,1755425450972,-185.39311456,0.0002074,2]
[379859189,1755425450981,-168.47236733,0.0002074,2]
[379859191,1755425450993,-151.0,0.0002074,2]
[379859193,1755425451002,-151.0,0.0002074,2]
[379859195,1755425451012,-151.0,0.0002074,2]
[379859197,1755425451022,-151.0,0.0002074,2]
[379859199,1755425451032,-151.0,0.0002074,2]
[379859201,1755425451041,-3894.864034,0.0002074,2]
[379859203,1755425451051,-150.0,0.00020751,2]
[379859205,1755425451061,-240.27,0.00020751,2]
[379859207,1755425451071,-150.129,0.00020751,2]
[379859209,1755425451083,-150.256,0.00020751,2]
[379859211,1755425451092,-150.0,0.00020751,2]
[379859213,1755425451102,-219.266,0.00020751,2]
[379859215,1755425451111,-151.0,0.00020751,2]
[379859217,1755425451120,-165.944507,0.00020751,2]
[379859219,1755425451131,-165.944507,0.00020751,2]
[379859221,1755425451140,-635.75614345,0.00020752,2]
[379859222,1755425451150,-431.9864578,0.00020766,2]
[379859224,1755425451159,-1425.506809,0.00020767,2]
[379859226,1755425451169,-1425.506809,0.00020767,2]
[379859228,1755425451178,-185.3931145,0.00020767,2]
[379859230,1755425451187,-151.0,0.00020774,2]
[379859232,1755425451197,-350.53630495,0.0002078,2]
[379859234,1755425451206,-151.0,0.00020785,2]
[379859236,1755425451215,-151.0,0.000208,4]
[379859238,1755425451224,-600.0,0.00020804,20]
[379859240,1755425451234,-502.53,0.00020821,2]
[379859242,1755425451243,-185.39311456,0.00020822,2]
[379859244,1755425451252,-431.9864578,0.00020825,2]
[379859246,1755425451261,-478.0,0.00020829,2]
[379859248,1755425451270,-480.0,0.00020837,2]
[379859250,1755425451279,-372.7,0.00020839,3]
[379859252,1755425451288,-207.0,0.0002087,2]
[379859254,1755425451297,-478.0,0.00020892,2]
[379859255,1755425451307,-251.18849334,0.000209,2]
[379859257,1755425451316,-354.573809,0.000209,10]
[379859259,1755425451326,-3943.25312665,0.00020923,2]
[379859261,1755425451335,-635.09782995,0.00020925,2]
[379859263,1755425451344,-153.089696,0.0002093,20]
[379859265,1755425451353,-185.39311456,0.00020932,2]
[379859267,1755425451362,-151.0,0.00020934,2]
[379859269,1755425451372,-845.63,0.00020935,2]
[379859271,1755425451381,-480.0,0.00020935,2]
[379859273,1755425451390,-480.0,0.00020935,2]
[379859275,1755425451399,-480.0,0.00020935,2]
[379859277,1755425451408,-1448.02,0.00020935,2]
[379859279,1755425451418,-2552.16,0.00020935,2]
[379859281,1755425451427,-480.0,0.00020935,2]
[379859282,1755425451436,-3827.42,0.00020935,2]
[379859284,1755425451446,-1483.94,0.00020935,2]
[379859286,1755425451455,-480.0,0.00020935,2]
[379859288,1755425451464,-480.0,0.00020935,2]
[379859290,1755425451473,-480.0,0.00020935,2]
[379859292,1755425451483,-480.0,0.00020935,2]
[379859294,1755425451492,-1770.71,0.00020935,2]
[379859296,1755425451501,-480.0,0.00020935,2]
[379859298,1755425451510,-480.0,0.00020936,2]
[379859300,1755425451519,-480.0,0.00020936,2]
[379859302,1755425451528,-813.28,0.00020936,2]
[379859304,1755425451537,-480.76,0.00020936,2]
[379859306,1755425451547,-480.0,0.00020936,2]
[379859308,1755425451556,-151.0,0.00020936,2]
[379859310,1755425451565,-525.27,0.00020936,2]
[379859312,1755425451574,-480.0,0.00020936,2]
[379859314,1755425451583,-1763.29,0.00020936,2]
[379859316,1755425451593,-480.0,0.00020936,2]
[379859318,1755425451601,-480.0,0.00020936,2]
[379859320,1755425451611,-480.0,0.00020936,2]
[379859322,1755425451620,-2382.81,0.00020936,2]
[379859324,1755425451629,-480.0,0.00020936,2]
[379859326,1755425451638,-480.0,0.00020936,2]
[379859328,1755425451647,-480.0,0.00020936,2]
[379859330,1755425451656,-151.0,0.00020936,2]
[379859332,1755425451665,-480.0,0.00020936,2]
[379859334,1755425451675,-521.0,0.00020936,2]
[379859336,1755425451684,-480.0,0.00020936,2]